[Event "Early-Titled-Tuesday-Blitz-March-19-2024"]
[Site "Chess.com"]
[Date "2024.03.19"]
[Round "11"]
[White "scarabee43"]
[Black "BilodeauA"]
[Result "0-1"]
[WhiteElo "2860"]
[BlackElo "3062"]
[TimeControl "180+1"]
[EndTime "10:04:44 PDT"]
[Termination "BilodeauA won by checkmate"]

1. d4 {[%clk 0:03:00.9]} 1... d5 {[%clk 0:03:00.1]} 2. c4 {[%clk 0:03:01.3]}
2... dxc4 {[%clk 0:03:00.4]} 3. Nf3 {[%clk 0:03:01.8]} 3... a6 {[%clk
0:03:00.3]} 4. e3 {[%clk 0:03:00.7]} 4... Bg4 {[%clk 0:03:01]} 5. Bxc4 {[%clk
0:03:00.6]} 5... e6 {[%clk 0:03:01.6]} 6. O-O {[%clk 0:03:00.5]} 6... Nf6 {[%clk
0:02:59.6]} 7. h3 {[%clk 0:03:00.5]} 7... Bh5 {[%clk 0:02:59.5]} 8. Nc3 {[%clk
0:03:00.1]} 8... Nc6 {[%clk 0:02:59.9]} 9. Be2 {[%clk 0:03:00]} 9... Bd6 {[%clk
0:02:59.6]} 10. a3 {[%clk 0:02:49.6]} 10... O-O {[%clk 0:02:58.8]} 11. b4 {[%clk
0:02:50.2]} 11... Nd5 {[%clk 0:02:59.3]} 12. Ne4 {[%clk 0:02:46.2]} 12... f5
{[%clk 0:02:58.2]} 13. Nxd6 {[%clk 0:02:43.5]} 13... cxd6 {[%clk 0:02:50.7]} 14.
Qb3 {[%clk 0:02:38.7]} 14... Kh8 {[%clk 0:02:42.1]} 15. Bb2 {[%clk 0:02:31.7]}
15... Nce7 {[%clk 0:02:28.4]} 16. Rac1 {[%clk 0:02:24.1]} 16... Ng8 {[%clk
0:02:28.5]} 17. Rc2 {[%clk 0:02:21.8]} 17... Ngf6 {[%clk 0:02:28.2]} 18. Rfc1
{[%clk 0:02:16.3]} 18... Ne4 {[%clk 0:02:28.5]} 19. Ne1 {[%clk 0:02:13.6]} 19...
Bxe2 {[%clk 0:02:22.3]} 20. Rxe2 {[%clk 0:02:14.1]} 20... Qh4 {[%clk 0:02:07.6]}
21. Nd3 {[%clk 0:02:04.1]} 21... h6 {[%clk 0:02:02.9]} 22. a4 {[%clk 0:01:57.1]}
22... Kh7 {[%clk 0:01:59.7]} 23. b5 {[%clk 0:01:48]} 23... a5 {[%clk 0:01:59.2]}
24. Rec2 {[%clk 0:01:46.1]} 24... Rf6 {[%clk 0:01:55.4]} 25. Ba3 {[%clk
0:01:27.3]} 25... Rg6 {[%clk 0:01:52.2]} 26. Kh2 {[%clk 0:01:20.5]} 26... Rc8
{[%clk 0:01:27.6]} 27. Rxc8 {[%clk 0:01:02.5]} 27... Nxe3 {[%clk 0:01:23.8]} 28.
Rg1 {[%clk 0:00:32]} 28... Ng4+ {[%clk 0:01:15]} 29. Kh1 {[%clk 0:00:32.5]}
29... Qg3 {[%clk 0:01:14.4]} 30. Bxd6 {[%clk 0:00:28.5]} 30... Qh2+ {[%clk
0:01:10.6]} 31. Bxh2 {[%clk 0:00:27.9]} 31... Ngxf2+ {[%clk 0:01:09.2]} 32. Nxf2
{[%clk 0:00:28.4]} 32... Nxf2# {[%clk 0:01:09.5]} 0-1

[Event "Early-Titled-Tuesday-Blitz-March-19-2024"]
[Site "Chess.com"]
[Date "2024.03.19"]
[Round "11"]
[White "DavidGavrilescu18"]
[Black "Muracle"]
[Result "0-1"]
[WhiteElo "2758"]
[BlackElo "2584"]
[TimeControl "180+1"]
[EndTime "10:04:50 PDT"]
[Termination "Muracle won by checkmate"]

1. e4 {[%clk 0:02:58.3]} 1... c6 {[%clk 0:02:53.5]} 2. d4 {[%clk 0:02:57.9]}
2... d5 {[%clk 0:02:54]} 3. Nc3 {[%clk 0:02:58.8]} 3... dxe4 {[%clk 0:02:51.6]}
4. Nxe4 {[%clk 0:02:59.7]} 4... Nf6 {[%clk 0:02:52.2]} 5. Ng5 {[%clk 0:03:00.2]}
5... h6 {[%clk 0:02:51.8]} 6. Nxf7 {[%clk 0:03:00.9]} 6... Kxf7 {[%clk
0:02:52.7]} 7. Nf3 {[%clk 0:03:01.5]} 7... Bf5 {[%clk 0:02:46.8]} 8. Ne5+ {[%clk
0:02:57.9]} 8... Kg8 {[%clk 0:02:43.7]} 9. Bc4+ {[%clk 0:02:58.5]} 9... Nd5
{[%clk 0:02:41.9]} 10. Qh5 {[%clk 0:02:53.1]} 10... e6 {[%clk 0:02:04.4]} 11.
Qf7+ {[%clk 0:02:49.4]} 11... Kh7 {[%clk 0:02:05]} 12. g4 {[%clk 0:02:50]} 12...
Bxc2 {[%clk 0:02:05.6]} 13. Kd2 {[%clk 0:02:47.5]} 13... Be4 {[%clk 0:02:00.6]}
14. f3 {[%clk 0:02:45.5]} 14... Bb4+ {[%clk 0:01:58.2]} 15. Kd1 {[%clk
0:02:44.6]} 15... Rf8 {[%clk 0:01:54]} 16. Qh5 {[%clk 0:02:37.8]} 16... Nf6
{[%clk 0:01:34.6]} 17. Qh3 {[%clk 0:02:00.9]} 17... Qxd4+ {[%clk 0:01:33.1]} 18.
Ke2 {[%clk 0:02:01.6]} 18... Qxe5 {[%clk 0:01:29.1]} 19. Be3 {[%clk 0:02:01.5]}
19... Qxb2+ {[%clk 0:01:28.3]} 20. Kf1 {[%clk 0:02:01.8]} 20... Nxg4 {[%clk
0:01:27.1]} 21. Qxg4 {[%clk 0:01:58.7]} 21... Bxf3 {[%clk 0:01:23.9]} 22. Bd3+
{[%clk 0:01:54.3]} 22... Be4+ {[%clk 0:01:22.4]} 23. Kg1 {[%clk 0:01:54]} 23...
Bxd3 {[%clk 0:01:22.4]} 24. Rd1 {[%clk 0:01:52.2]} 24... Qe2 {[%clk 0:01:20.4]}
25. Qxe2 {[%clk 0:01:47.2]} 25... Bxe2 {[%clk 0:01:21.3]} 26. Rb1 {[%clk
0:01:47.8]} 26... Na6 {[%clk 0:01:21.1]} 27. h4 {[%clk 0:01:46.8]} 27... Bc5
{[%clk 0:01:21.3]} 28. Rh3 {[%clk 0:01:46.3]} 28... Rf3 {[%clk 0:01:17.6]} 29.
Rxf3 {[%clk 0:01:45.2]} 29... Bxf3 {[%clk 0:01:18.5]} 30. Kf2 {[%clk 0:01:46.1]}
30... Bxe3+ {[%clk 0:01:18.3]} 31. Kxe3 {[%clk 0:01:47]} 31... Bd5 {[%clk
0:01:19.2]} 32. Rxb7 {[%clk 0:01:47.5]} 32... Nc5 {[%clk 0:01:20.1]} 33. Rc7
{[%clk 0:01:47.6]} 33... Ne4 {[%clk 0:01:21]} 34. h5 {[%clk 0:01:47.6]} 34...
Nf6 {[%clk 0:01:21.3]} 35. Kd4 {[%clk 0:01:47.8]} 35... Nxh5 {[%clk 0:01:21.6]}
36. a4 {[%clk 0:01:48]} 36... a5 {[%clk 0:01:21.8]} 37. Kc5 {[%clk 0:01:47.7]}
37... Nf6 {[%clk 0:01:22.3]} 38. Kd6 {[%clk 0:01:47.4]} 38... Ne8+ {[%clk
0:01:22.2]} 39. Kd7 {[%clk 0:01:48.1]} 39... Nxc7 {[%clk 0:01:23.1]} 40. Kxc7
{[%clk 0:01:49]} 40... Rf8 {[%clk 0:01:23.5]} 41. Kb7 {[%clk 0:01:49.9]} 41...
Rf4 {[%clk 0:01:24.4]} 42. Kb6 {[%clk 0:01:50.7]} 42... Rxa4 {[%clk 0:01:25.3]}
43. Kc5 {[%clk 0:01:51.4]} 43... Rf4 {[%clk 0:01:25.5]} 44. Kd6 {[%clk
0:01:52.3]} 44... Rf5 {[%clk 0:01:26.4]} 45. Kc5 {[%clk 0:01:52.6]} 45... Rf6
{[%clk 0:01:27.3]} 46. Kd6 {[%clk 0:01:53.5]} 46... Kg6 {[%clk 0:01:28.2]} 47.
Kc7 {[%clk 0:01:54.3]} 47... Kg5 {[%clk 0:01:29.1]} 48. Kb6 {[%clk 0:01:55.2]}
48... h5 {[%clk 0:01:30]} 49. Kc5 {[%clk 0:01:56.1]} 49... g6 {[%clk 0:01:30.9]}
50. Kd6 {[%clk 0:01:57]} 50... h4 {[%clk 0:01:31.8]} 51. Ke7 {[%clk 0:01:57.9]}
51... Kg4 {[%clk 0:01:32.7]} 52. Kd6 {[%clk 0:01:58.8]} 52... g5 {[%clk
0:01:33.6]} 53. Kc7 {[%clk 0:01:59.7]} 53... Rf5 {[%clk 0:01:34.5]} 54. Kb6
{[%clk 0:02:00.6]} 54... Rf4 {[%clk 0:01:35.4]} 55. Kc5 {[%clk 0:02:01.5]} 55...
Rf3 {[%clk 0:01:36.3]} 56. Kd6 {[%clk 0:02:02.4]} 56... Kg3 {[%clk 0:01:37.2]}
57. Ke7 {[%clk 0:02:03.3]} 57... g4 {[%clk 0:01:38.1]} 58. Kd6 {[%clk
0:02:04.2]} 58... h3 {[%clk 0:01:39]} 59. Kc7 {[%clk 0:02:05.1]} 59... Kg2
{[%clk 0:01:39.9]} 60. Kb6 {[%clk 0:02:06]} 60... g3 {[%clk 0:01:40.8]} 61. Kc5
{[%clk 0:02:06.9]} 61... Rf2 {[%clk 0:01:41.7]} 62. Kd6 {[%clk 0:02:07.8]} 62...
h2 {[%clk 0:01:42.6]} 63. Kc7 {[%clk 0:02:08.7]} 63... Kg1 {[%clk 0:01:43.5]}
64. Kb6 {[%clk 0:02:09.6]} 64... g2 {[%clk 0:01:44.4]} 65. Kc7 {[%clk
0:02:10.5]} 65... a4 {[%clk 0:01:45.3]} 66. Kd6 {[%clk 0:02:11.4]} 66... a3
{[%clk 0:01:46.2]} 67. Kc5 {[%clk 0:02:12.3]} 67... a2 {[%clk 0:01:47.1]} 68.
Kd6 {[%clk 0:02:13.2]} 68... e5 {[%clk 0:01:48]} 69. Kc7 {[%clk 0:02:14.1]}
69... e4 {[%clk 0:01:48.9]} 70. Kb6 {[%clk 0:02:15]} 70... e3 {[%clk 0:01:49.8]}
71. Kc5 {[%clk 0:02:15.9]} 71... e2 {[%clk 0:01:50.7]} 72. Kd6 {[%clk
0:02:16.8]} 72... Rf4 {[%clk 0:01:48.1]} 73. Kc7 {[%clk 0:02:17.7]} 73... Ra4
{[%clk 0:01:49]} 74. Kb6 {[%clk 0:02:18.6]} 74... Bf3 {[%clk 0:01:48.4]} 75. Kc5
{[%clk 0:02:19.5]} 75... Kf2 {[%clk 0:01:48.7]} 76. Kd6 {[%clk 0:02:20.4]} 76...
Rc4 {[%clk 0:01:48.7]} 77. Kc7 {[%clk 0:02:21.3]} 77... c5 {[%clk 0:01:49.1]}
78. Kb6 {[%clk 0:02:22.2]} 78... Rc2 {[%clk 0:01:49]} 79. Kc7 {[%clk 0:02:22.4]}
79... c4 {[%clk 0:01:49.4]} 80. Kd6 {[%clk 0:02:23.3]} 80... c3 {[%clk
0:01:49.6]} 81. Kc5 {[%clk 0:02:24.2]} 81... Rb2 {[%clk 0:01:49.8]} 82. Kd6
{[%clk 0:02:25.1]} 82... Rb5 {[%clk 0:01:49.5]} 83. Kc7 {[%clk 0:02:26]} 83...
Rd5 {[%clk 0:01:47.4]} 84. Kb6 {[%clk 0:02:26.9]} 84... c2 {[%clk 0:01:47.2]}
85. Kc7 {[%clk 0:02:26.9]} 85... h1=Q {[%clk 0:01:46.5]} 86. Kb6 {[%clk
0:02:27.8]} 86... g1=Q {[%clk 0:01:45.7]} 87. Kc6 {[%clk 0:02:28.7]} 87... e1=Q
{[%clk 0:01:44.6]} 88. Kb6 {[%clk 0:02:29.6]} 88... c1=Q {[%clk 0:01:43.8]} 89.
Kb7 {[%clk 0:02:30]} 89... a1=Q {[%clk 0:01:43.7]} 90. Kb6 {[%clk 0:02:30.9]}
90... Qhh8 {[%clk 0:01:41.8]} 91. Kb7 {[%clk 0:02:31.8]} 91... Qae5 {[%clk
0:01:40.6]} 92. Kb6 {[%clk 0:02:32.7]} 92... Qcc8 {[%clk 0:01:38.3]} 93. Ka7
{[%clk 0:02:32.5]} 93... Be4 {[%clk 0:01:36.7]} 94. Kb6 {[%clk 0:02:33.4]} 94...
Ke3 {[%clk 0:01:36.9]} 95. Ka7 {[%clk 0:02:34.3]} 95... Kd4 {[%clk 0:01:37.2]}
96. Kb6 {[%clk 0:02:35.2]} 96... Qgf2 {[%clk 0:01:36.8]} 97. Ka7 {[%clk
0:02:36.1]} 97... Qfe3 {[%clk 0:01:36.9]} 98. Kb6 {[%clk 0:02:37]} 98... Qeh2
{[%clk 0:01:36.8]} 99. Ka7 {[%clk 0:02:37.9]} 99... Qhg1 {[%clk 0:01:37]} 100.
Kb6 {[%clk 0:02:38.8]} 100... Qe1f2 {[%clk 0:01:37.2]} 101. Ka7 {[%clk
0:02:39.7]} 101... Bh1 {[%clk 0:01:35.1]} 102. Kb6 {[%clk 0:02:40.6]} 102...
Kc3# {[%clk 0:01:34.2]} 0-1

[Event "Early-Titled-Tuesday-Blitz-March-19-2024"]
[Site "Chess.com"]
[Date "2024.03.19"]
[Round "11"]
[White "JimDiGrease"]
[Black "GeorgiosSouleidis"]
[Result "1-0"]
[WhiteElo "2966"]
[BlackElo "2682"]
[TimeControl "180+1"]
[EndTime "10:05:00 PDT"]
[Termination "JimDiGrease won by resignation"]

1. d4 {[%clk 0:03:00.9]} 1... Nf6 {[%clk 0:02:59.8]} 2. c4 {[%clk 0:03:01.5]}
2... g6 {[%clk 0:03:00.3]} 3. Nc3 {[%clk 0:03:00.6]} 3... Bg7 {[%clk 0:03:00.9]}
4. e4 {[%clk 0:03:00.7]} 4... d6 {[%clk 0:03:01.5]} 5. Nf3 {[%clk 0:03:01.3]}
5... O-O {[%clk 0:03:02.1]} 6. Be2 {[%clk 0:03:02]} 6... e5 {[%clk 0:03:02.6]}
7. O-O {[%clk 0:03:02.7]} 7... Bg4 {[%clk 0:03:02.9]} 8. d5 {[%clk 0:03:02.6]}
8... a5 {[%clk 0:03:03]} 9. Be3 {[%clk 0:03:00]} 9... Na6 {[%clk 0:03:02.7]} 10.
Nd2 {[%clk 0:03:00.5]} 10... Bd7 {[%clk 0:03:02.4]} 11. a3 {[%clk 0:02:59.2]}
11... h5 {[%clk 0:03:02.5]} 12. f3 {[%clk 0:02:57.2]} 12... Nh7 {[%clk
0:02:59.7]} 13. Rb1 {[%clk 0:02:51.8]} 13... Nc5 {[%clk 0:02:59.7]} 14. b4
{[%clk 0:02:49.1]} 14... axb4 {[%clk 0:03:00.6]} 15. axb4 {[%clk 0:02:49.9]}
15... Na4 {[%clk 0:03:01.1]} 16. Qc2 {[%clk 0:02:46.9]} 16... Nxc3 {[%clk
0:03:00.5]} 17. Qxc3 {[%clk 0:02:47.8]} 17... f5 {[%clk 0:03:01]} 18. c5 {[%clk
0:02:45]} 18... Nf6 {[%clk 0:02:53.2]} 19. b5 {[%clk 0:02:27.5]} 19... fxe4
{[%clk 0:02:39.8]} 20. fxe4 {[%clk 0:02:16.4]} 20... Ng4 {[%clk 0:02:29.5]} 21.
Bxg4 {[%clk 0:02:14.6]} 21... Bxg4 {[%clk 0:02:29]} 22. h3 {[%clk 0:01:59]}
22... Rxf1+ {[%clk 0:02:02.9]} 23. Rxf1 {[%clk 0:01:59.9]} 23... Be2 {[%clk
0:01:51]} 24. Rb1 {[%clk 0:01:44.2]} 24... h4 {[%clk 0:01:36.4]} 25. b6 {[%clk
0:01:26.1]} 25... dxc5 {[%clk 0:01:30.1]} 26. Qxc5 {[%clk 0:01:19.6]} 26... cxb6
{[%clk 0:01:27.8]} 27. Rxb6 {[%clk 0:01:19.6]} 27... Bf8 {[%clk 0:00:49.7]} 28.
Rxg6+ {[%clk 0:00:53]} 28... Kh7 {[%clk 0:00:49.7]} 29. Qb6 {[%clk 0:00:53.5]}
29... Ra3 {[%clk 0:00:34.2]} 30. Qxd8 {[%clk 0:00:52]} 1-0

[Event "Early-Titled-Tuesday-Blitz-March-19-2024"]
[Site "Chess.com"]
[Date "2024.03.19"]
[Round "11"]
[White "GelmanAlexander"]
[Black "amanjazu"]
[Result "1-0"]
[WhiteElo "2682"]
[BlackElo "2546"]
[TimeControl "180+1"]
[EndTime "10:05:03 PDT"]
[Termination "GelmanAlexander won on time"]

1. d4 {[%clk 0:03:00.9]} 1... Nf6 {[%clk 0:03:00.1]} 2. Nc3 {[%clk 0:03:00.9]}
2... d5 {[%clk 0:02:59.8]} 3. Bf4 {[%clk 0:03:00.7]} 3... g6 {[%clk 0:02:59.8]}
4. e3 {[%clk 0:03:01]} 4... Bg7 {[%clk 0:03:00.2]} 5. h4 {[%clk 0:03:01.3]} 5...
O-O {[%clk 0:03:01.1]} 6. h5 {[%clk 0:03:01]} 6... Nxh5 {[%clk 0:02:48]} 7. Rxh5
{[%clk 0:02:59.3]} 7... gxh5 {[%clk 0:02:48.9]} 8. Qxh5 {[%clk 0:02:58.8]} 8...
c6 {[%clk 0:02:45.6]} 9. Nf3 {[%clk 0:02:50.7]} 9... Qe8 {[%clk 0:02:33.8]} 10.
Bd3 {[%clk 0:02:40.7]} 10... f5 {[%clk 0:02:32.9]} 11. Qh2 {[%clk 0:02:40.2]}
11... Nd7 {[%clk 0:02:32.6]} 12. O-O-O {[%clk 0:02:33.4]} 12... Nf6 {[%clk
0:02:32.3]} 13. Rh1 {[%clk 0:02:28.1]} 13... h6 {[%clk 0:01:59.8]} 14. Ne5
{[%clk 0:02:19.8]} 14... h5 {[%clk 0:01:51.6]} 15. f3 {[%clk 0:02:14.1]} 15...
Nd7 {[%clk 0:01:39.7]} 16. Ne2 {[%clk 0:02:02.2]} 16... Nxe5 {[%clk 0:00:27]}
17. Bxe5 {[%clk 0:02:00.8]} 17... Bxe5 {[%clk 0:00:27.5]} 18. dxe5 {[%clk
0:01:51.6]} 18... e6 {[%clk 0:00:09.1]} 19. Nf4 {[%clk 0:01:49.4]} 19... Kf7
{[%clk 0:00:06.8]} 20. Qh4 {[%clk 0:01:28.9]} 20... Qd8 {[%clk 0:00:04.4]} 21.
Qxh5+ {[%clk 0:01:26.1]} 21... Ke7 {[%clk 0:00:04.8]} 22. Qg5+ {[%clk
0:01:10.4]} 22... Ke8 {[%clk 0:00:03.6]} 23. Qg6+ {[%clk 0:01:10.2]} 23... Kd7
{[%clk 0:00:03.9]} 24. Rh7+ {[%clk 0:01:06]} 1-0

[Event "Early-Titled-Tuesday-Blitz-March-19-2024"]
[Site "Chess.com"]
[Date "2024.03.19"]
[Round "11"]
[White "Kostukov_Alex"]
[Black "picturesquecheck"]
[Result "1-0"]
[WhiteElo "2269"]
[BlackElo "2416"]
[TimeControl "180+1"]
[EndTime "10:05:08 PDT"]
[Termination "Kostukov_Alex won by resignation"]

1. g3 {[%clk 0:02:57.2]} 1... d6 {[%clk 0:03:00.9]} 2. d4 {[%clk 0:02:56.6]}
2... g6 {[%clk 0:03:01.1]} 3. c4 {[%clk 0:02:56.6]} 3... Bg7 {[%clk 0:03:02]} 4.
Nc3 {[%clk 0:02:57]} 4... Nf6 {[%clk 0:03:01]} 5. Bg2 {[%clk 0:02:56.4]} 5...
O-O {[%clk 0:03:00.1]} 6. Nf3 {[%clk 0:02:56.5]} 6... Nc6 {[%clk 0:03:00.8]} 7.
O-O {[%clk 0:02:56.6]} 7... Bg4 {[%clk 0:03:00.2]} 8. d5 {[%clk 0:02:51.2]} 8...
Bxf3 {[%clk 0:02:58.6]} 9. exf3 {[%clk 0:02:46.6]} 9... Na5 {[%clk 0:02:58.4]}
10. b3 {[%clk 0:02:41.9]} 10... c5 {[%clk 0:02:58.4]} 11. Bb2 {[%clk 0:02:40.2]}
11... a6 {[%clk 0:02:57.1]} 12. Qe2 {[%clk 0:02:38]} 12... Rb8 {[%clk
0:02:56.8]} 13. Rfe1 {[%clk 0:02:33.8]} 13... Re8 {[%clk 0:02:57]} 14. f4 {[%clk
0:02:30.9]} 14... Qd7 {[%clk 0:02:56.4]} 15. Qd2 {[%clk 0:01:52.2]} 15... b5
{[%clk 0:02:47.3]} 16. cxb5 {[%clk 0:01:19.5]} 16... axb5 {[%clk 0:02:48.2]} 17.
Ne4 {[%clk 0:01:18.3]} 17... Nxe4 {[%clk 0:02:45.4]} 18. Rxe4 {[%clk 0:01:17.8]}
18... Bxb2 {[%clk 0:02:44.4]} 19. Qxb2 {[%clk 0:01:17.9]} 19... c4 {[%clk
0:02:42.4]} 20. Rae1 {[%clk 0:01:14]} 20... Rbc8 {[%clk 0:02:35.7]} 21. Qc3
{[%clk 0:01:03.4]} 21... Qa7 {[%clk 0:02:28]} 22. b4 {[%clk 0:00:53.4]} 22...
Nb7 {[%clk 0:02:18]} 23. Rxe7 {[%clk 0:00:53]} 23... Qa8 {[%clk 0:02:09.9]} 24.
Qf6 {[%clk 0:00:48.2]} 24... Rf8 {[%clk 0:02:00.7]} 25. h4 {[%clk 0:00:42.6]}
25... Rce8 {[%clk 0:01:49.9]} 26. h5 {[%clk 0:00:38.2]} 26... gxh5 {[%clk
0:01:38.6]} 27. Bh3 {[%clk 0:00:13.8]} 27... Rxe7 {[%clk 0:01:38.3]} 28. Rxe7
{[%clk 0:00:12.8]} 28... c3 {[%clk 0:01:33.9]} 29. Bf5 {[%clk 0:00:12.4]} 29...
Qxa2 {[%clk 0:01:28.4]} 30. Qg5+ {[%clk 0:00:10.2]} 30... Kh8 {[%clk 0:01:27.5]}
31. Qxh5 {[%clk 0:00:10.5]} 31... Kg7 {[%clk 0:01:17]} 32. Qg5+ {[%clk
0:00:09.1]} 32... Kh8 {[%clk 0:01:17]} 33. Qh6 {[%clk 0:00:09.6]} 1-0

[Event "Early-Titled-Tuesday-Blitz-March-19-2024"]
[Site "Chess.com"]
[Date "2024.03.19"]
[Round "11"]
[White "Boundless_Strike"]
[Black "CSB7"]
[Result "0-1"]
[WhiteElo "2632"]
[BlackElo "2772"]
[TimeControl "180+1"]
[EndTime "10:05:14 PDT"]
[Termination "CSB7 won by resignation"]

1. d4 {[%clk 0:02:27]} 1... d5 {[%clk 0:02:58.7]} 2. e4 {[%clk 0:02:27.1]} 2...
dxe4 {[%clk 0:02:57.8]} 3. Nc3 {[%clk 0:02:27.6]} 3... Nf6 {[%clk 0:02:57.5]} 4.
f3 {[%clk 0:02:28.2]} 4... exf3 {[%clk 0:02:57.6]} 5. Nxf3 {[%clk 0:02:28.7]}
5... Bf5 {[%clk 0:02:51.5]} 6. Ne5 {[%clk 0:02:28.6]} 6... c6 {[%clk 0:02:49.6]}
7. g4 {[%clk 0:02:26]} 7... Be4 {[%clk 0:02:36.7]} 8. Nxe4 {[%clk 0:02:20.9]}
8... Nxe4 {[%clk 0:02:37.6]} 9. Bc4 {[%clk 0:02:03.9]} 9... Nd6 {[%clk
0:02:33.1]} 10. Qf3 {[%clk 0:02:00.9]} 10... f6 {[%clk 0:02:19]} 11. O-O {[%clk
0:01:39.3]} 11... Nxc4 {[%clk 0:02:17.8]} 12. Nxc4 {[%clk 0:01:37.3]} 12...
Qxd4+ {[%clk 0:02:17.9]} 13. Ne3 {[%clk 0:01:33.6]} 13... Nd7 {[%clk 0:01:55.8]}
14. Rd1 {[%clk 0:01:29.6]} 14... Ne5 {[%clk 0:01:44.8]} 15. Qf2 {[%clk
0:00:54.2]} 15... Qe4 {[%clk 0:01:43]} 16. b4 {[%clk 0:00:22.4]} 16... e6 {[%clk
0:01:34.2]} 17. Bb2 {[%clk 0:00:22.2]} 17... Nxg4 {[%clk 0:01:15.7]} 18. Nxg4
{[%clk 0:00:22.6]} 18... Qxg4+ {[%clk 0:01:16.6]} 19. Kh1 {[%clk 0:00:23.2]}
19... Qe4+ {[%clk 0:01:17.1]} 20. Kg1 {[%clk 0:00:22.8]} 20... Bxb4 {[%clk
0:01:15.8]} 21. Rd4 {[%clk 0:00:22.8]} 21... Qg6+ {[%clk 0:01:15.3]} 22. Kf1
{[%clk 0:00:11.5]} 22... Bc5 {[%clk 0:01:08.5]} 23. Re1 {[%clk 0:00:11.5]} 23...
O-O {[%clk 0:01:04.9]} 24. Rxe6 {[%clk 0:00:08.4]} 24... Bxd4 {[%clk 0:01:04]}
25. Bxd4 {[%clk 0:00:08.7]} 25... Rfe8 {[%clk 0:01:01.8]} 26. Qe2 {[%clk
0:00:05.9]} 26... Qf7 {[%clk 0:00:59]} 27. Re7 {[%clk 0:00:05.8]} 27... Rxe7
{[%clk 0:00:58.4]} 0-1

[Event "Early-Titled-Tuesday-Blitz-March-19-2024"]
[Site "Chess.com"]
[Date "2024.03.19"]
[Round "11"]
[White "BilicVladimir"]
[Black "talaicito"]
[Result "0-1"]
[WhiteElo "2657"]
[BlackElo "2338"]
[TimeControl "180+1"]
[EndTime "10:05:18 PDT"]
[Termination "talaicito won by checkmate"]

1. Nf3 {[%clk 0:03:00.9]} 1... f5 {[%clk 0:02:58]} 2. d4 {[%clk 0:03:01.8]} 2...
Nf6 {[%clk 0:02:58.1]} 3. g3 {[%clk 0:03:01.2]} 3... e6 {[%clk 0:02:58.3]} 4.
Bg2 {[%clk 0:03:02]} 4... Be7 {[%clk 0:02:59]} 5. O-O {[%clk 0:03:02.1]} 5...
O-O {[%clk 0:02:59.9]} 6. c4 {[%clk 0:03:02]} 6... d6 {[%clk 0:03:00.4]} 7. Nc3
{[%clk 0:03:02.5]} 7... a5 {[%clk 0:03:01]} 8. b3 {[%clk 0:03:02.7]} 8... Ne4
{[%clk 0:02:49.7]} 9. Bb2 {[%clk 0:03:02.3]} 9... Bf6 {[%clk 0:02:39.7]} 10. e3
{[%clk 0:03:01.1]} 10... Nc6 {[%clk 0:02:29.8]} 11. Nd2 {[%clk 0:03:00.7]} 11...
Nxc3 {[%clk 0:02:10.9]} 12. Bxc3 {[%clk 0:02:59.4]} 12... e5 {[%clk 0:02:11.2]}
13. dxe5 {[%clk 0:02:52]} 13... dxe5 {[%clk 0:02:12.1]} 14. Qc2 {[%clk
0:02:51.1]} 14... Nb4 {[%clk 0:02:01.1]} 15. Qb2 {[%clk 0:02:48.7]} 15... Nd3
{[%clk 0:01:56.5]} 16. Qb1 {[%clk 0:02:47]} 16... e4 {[%clk 0:01:55.3]} 17. Bxf6
{[%clk 0:02:45.6]} 17... Qxf6 {[%clk 0:01:56.2]} 18. Nxe4 {[%clk 0:02:24.4]}
18... fxe4 {[%clk 0:01:56.1]} 19. Bxe4 {[%clk 0:02:24.3]} 19... Ne5 {[%clk
0:01:56.3]} 20. Bxh7+ {[%clk 0:02:23.1]} 20... Kh8 {[%clk 0:01:56.8]} 21. Be4
{[%clk 0:02:19.6]} 21... Nf3+ {[%clk 0:01:55.8]} 22. Kh1 {[%clk 0:02:05.5]}
22... Bh3 {[%clk 0:01:45.2]} 23. Rd1 {[%clk 0:02:00.7]} 23... Qh6 {[%clk
0:01:34.6]} 24. Bxf3 {[%clk 0:01:47]} 24... Rxf3 {[%clk 0:01:33.8]} 25. Rd2
{[%clk 0:01:47.4]} 25... Raf8 {[%clk 0:01:26.9]} 26. Qb2 {[%clk 0:01:47.1]}
26... Bf5 {[%clk 0:01:19.8]} 27. h4 {[%clk 0:01:25.9]} 27... Be4 {[%clk
0:01:13.5]} 28. Kg1 {[%clk 0:01:18.9]} 28... Qg6 {[%clk 0:01:08.2]} 29. Qe5
{[%clk 0:01:06]} 29... Qg4 {[%clk 0:01:00.3]} 30. Rd4 {[%clk 0:00:40.6]} 30...
Rxf2 {[%clk 0:00:44.1]} 31. Qxe4 {[%clk 0:00:20.2]} 31... Qxg3+ {[%clk 0:00:43]}
32. Kh1 {[%clk 0:00:19.7]} 32... Qh2# {[%clk 0:00:43.3]} 0-1

[Event "Early-Titled-Tuesday-Blitz-March-19-2024"]
[Site "Chess.com"]
[Date "2024.03.19"]
[Round "11"]
[White "Korchmar_Vasiliy"]
[Black "Vse_po_kaify"]
[Result "1-0"]
[WhiteElo "2697"]
[BlackElo "2491"]
[TimeControl "180+1"]
[EndTime "10:05:20 PDT"]
[Termination "Korchmar_Vasiliy won by checkmate"]

1. a3 {[%clk 0:03:00.9]} 1... c5 {[%clk 0:02:59.3]} 2. e3 {[%clk 0:02:47.4]}
2... e5 {[%clk 0:02:58]} 3. d4 {[%clk 0:02:46.2]} 3... cxd4 {[%clk 0:02:56.6]}
4. exd4 {[%clk 0:02:47.1]} 4... e4 {[%clk 0:02:57]} 5. c4 {[%clk 0:02:41.7]}
5... Nf6 {[%clk 0:02:56.4]} 6. Nc3 {[%clk 0:02:42]} 6... d5 {[%clk 0:02:50.5]}
7. Bg5 {[%clk 0:02:33.4]} 7... Be7 {[%clk 0:02:43.5]} 8. Bxf6 {[%clk 0:02:29.9]}
8... Bxf6 {[%clk 0:02:43.7]} 9. Nxd5 {[%clk 0:02:30.4]} 9... Nc6 {[%clk
0:02:42]} 10. Ne2 {[%clk 0:02:25.4]} 10... O-O {[%clk 0:02:40.4]} 11. b4 {[%clk
0:02:10.9]} 11... Be6 {[%clk 0:02:30.2]} 12. Nxf6+ {[%clk 0:02:06.3]} 12... Qxf6
{[%clk 0:02:30.3]} 13. b5 {[%clk 0:02:01.1]} 13... Na5 {[%clk 0:02:15.2]} 14.
Ng3 {[%clk 0:01:45.1]} 14... Nxc4 {[%clk 0:01:59.7]} 15. Nxe4 {[%clk 0:01:27.9]}
15... Qg6 {[%clk 0:01:59.4]} 16. Nc5 {[%clk 0:01:27.4]} 16... Rfe8 {[%clk
0:01:56]} 17. f3 {[%clk 0:01:09.2]} 17... Ne3 {[%clk 0:01:46.7]} 18. Qd3 {[%clk
0:01:03.6]} 18... Bf5 {[%clk 0:01:43.8]} 19. Ne4 {[%clk 0:00:53.9]} 19... Bxe4
{[%clk 0:01:28.8]} 20. fxe4 {[%clk 0:00:54.4]} 20... Rac8 {[%clk 0:01:28.6]} 21.
Kf2 {[%clk 0:00:39.5]} 21... Rxe4 {[%clk 0:01:16.9]} 22. Kg1 {[%clk 0:00:23.1]}
22... Rc2 {[%clk 0:01:10.3]} 23. g3 {[%clk 0:00:18.7]} 23... Nxf1 {[%clk
0:00:47.8]} 24. Qxc2 {[%clk 0:00:14]} 24... Nxg3 {[%clk 0:00:43.5]} 25. Qc8+
{[%clk 0:00:12.4]} 25... Re8 {[%clk 0:00:40.1]} 26. Qxe8# {[%clk 0:00:12.7]} 1-0